bitfinex/quotes_ETHUSD_20250622
["timestamp","ask_amount","ask_price","bid_price","bid_amount"]
[1750601093400,10.873,2206.6,2206.5,4.53206435]
[1750601093602,0.55,2206.5,2206.3,4.53227525]
[1750601093938,0.55,2206.5,2206.4,4.53226976]
[1750601094234,0.55,2206.5,2206.1,0.37839744]
[1750601094641,3.31718969,2206.5,2206.1,0.37839744]
[1750601094939,2.1522,2206.1,2206.0,0.228329]
[1750601095331,2.796,2206.2,2206.0,10.228329]
[1750601095540,12.4752,2206.6,2206.1,4.53288608]
[1750601095726,20.17821227,2206.6,2206.5,14.53206435]
[1750601095933,9.30521227,2206.6,2206.5,14.53206435]
[1750601096343,9.30521227,2206.6,2206.5,10.0]
[1750601096545,9.85521227,2206.6,2206.5,10.0]
[1750601097134,12.64121227,2206.6,2206.5,10.0]
[1750601097336,9.30321227,2206.6,2206.5,14.53206435]
[1750601097545,9.85321227,2206.6,2206.5,14.53206435]
[1750601097716,9.30321227,2206.6,2206.5,14.53206435]
[1750601098117,9.85321227,2206.6,2206.5,14.53206435]
[1750601099044,9.85321227,2206.6,2206.0,0.228329]
[1750601099244,0.55,2206.5,2206.1,4.53285061]
[1750601099447,0.55,2206.3,2206.0,0.228329]
[1750601099645,0.55,2206.1,2206.0,0.228329]
[1750601099851,3.346,2206.1,2206.0,4.76142056]
[1750601100036,10.882,2206.3,2206.2,4.53268062]
[1750601100346,10.882,2206.3,2206.1,4.53288608]
[1750601100347,0.55,2206.2,2206.1,4.53288608]
[1750601100565,0.55,2206.2,2206.0,0.228329]
[1750601100724,3.02831,2206.2,2206.0,0.228329]
[1750601100929,0.55,2206.1,2206.0,0.228329]
[1750601101127,1.6391,2206.4,2206.0,0.228329]
[1750601101128,8.919,2206.5,2206.0,0.228329]
[1750601101330,0.37821227,2206.6,2206.0,0.228329]
[1750601101584,0.37821227,2206.6,2206.5,14.53206435]
[1750601101863,0.37821227,2206.6,2206.5,16.12936435]
[1750601102649,13.757,2208.1,2207.2,1.6398]
[1750601102824,8.945,2207.9,2207.2,11.6398]
[1750601103026,2.873,2208.0,2207.8,4.52939577]
[1750601103338,2.873,2208.0,2207.9,4.52919063]
[1750601103557,2.873,2208.5,2208.0,4.52886363]
[1750601103855,2.873,2208.4,2208.3,4.52837023]
[1750601104024,11.845,2208.4,2208.3,4.52837023]
[1750601104216,1.84119175,2208.8,2208.7,4.52755014]
[1750601104451,8.972,2208.8,2208.2,10.0]
[1750601104655,8.972,2208.8,2208.2,4.52853762]
[1750601104973,7.40025506,2208.9,2208.3,4.52819681]
[1750601105149,8.966,2208.7,2208.1,4.52878039]
[1750601105352,8.966,2208.7,2207.8,24.59345096]
[1750601105639,8.966,2208.7,2208.5,4.52795157]
[1750601105813,2.873,2208.9,2207.9,14.63873405]
[1750601106018,8.964,2208.6,2208.5,4.52796015]
[1750601106215,0.55,2208.5,2207.7,10.0]
[1750601106449,0.55,2208.5,2208.2,4.52851639]
[1750601106657,0.55,2208.5,2208.3,4.52834087]
[1750601106820,0.55,2208.5,2208.4,4.52816518]
[1750601107424,11.823,2208.5,2208.4,4.52816518]
[1750601107630,11.823,2208.5,2208.4,14.52816518]
[1750601107631,2.872,2208.5,2208.4,14.52816518]
[1750601108021,2.872,2208.5,2208.4,14.97783368]
[1750601109553,3.422,2208.5,2208.4,0.4496685]
[1750601109772,2.0543,2208.4,2207.6,1.6398]
[1750601109936,0.55,2208.2,2207.3,4.53042178]
[1750601110131,0.55,2208.2,2207.2,6.03870101]
[1750601110330,10.0,2208.1,2206.7,1.5081]
[1750601110533,10.0,2208.1,2206.5,4.53191576]
[1750601110534,0.55,2207.4,2206.5,4.53191576]
[1750601110775,0.55,2206.8,2206.4,0.44331381]
[1750601111070,0.55,2206.8,2206.0,0.228329]
[1750601111071,0.55,2206.4,2206.0,0.228329]
[1750601111287,0.55,2206.2,2206.0,4.76124557]
[1750601111487,7.95488608,2206.1,2206.0,0.228329]
[1750601111632,9.45918608,2206.1,2206.0,0.228329]
[1750601111972,19.45918608,2206.1,2206.0,0.228329]
[1750601112172,19.88057278,2206.1,2206.0,0.228329]
[1750601112342,4.53370811,2205.7,2204.6,4.53578937]
[1750601112546,0.55,2205.4,2204.5,0.45309979]
[1750601112851,10.55,2205.3,2204.5,0.45309979]
[1750601113156,0.55,2205.0,2204.5,0.45309979]
[1750601113560,11.806,2204.9,2204.1,10.04536495]
[1750601113744,12.357,2204.8,2204.0,4.53720508]
[1750601114081,0.55,2204.6,2204.3,4.536384]
[1750601114247,9.487,2204.5,2203.9,1.95866269]
[1750601114447,0.55,2204.4,2204.3,4.53658757]
[1750601115370,0.55,2205.4,2204.8,4.53541938]
[1750601115577,0.55,2205.2,2204.2,14.59345096]
[1750601115774,0.55,2205.2,2203.9,1.96412295]
[1750601115945,0.55,2205.2,2204.7,4.53559551]
[1750601116147,1.5043,2205.5,2204.5,14.59345096]
[1750601116345,11.799,2205.4,2204.6,14.53590014]
[1750601116567,12.82144869,2205.4,2204.8,4.53543335]
[1750601116742,11.799,2205.4,2204.6,14.53590426]
[1750601116944,11.799,2205.4,2204.6,10.0]
[1750601117184,0.55,2205.3,2203.9,16.10155096]
[1750601117346,6.03846035,2205.5,2204.7,4.53563517]
[1750601117546,29.59318856,2205.4,2204.8,4.53543427]
[1750601117784,29.59318856,2205.4,2204.3,24.59345096]
[1750601117785,4.53506324,2205.1,2204.5,4.53617493]
[1750601117955,0.55,2204.9,2204.4,4.53626125]
[1750601118282,2.874,2204.8,2204.4,4.53621953]
[1750601118481,0.55,2204.7,2204.6,4.53577538]
[1750601118667,3.424,2205.0,2204.9,4.53520668]
[1750601118981,9.484,2205.0,2204.8,4.53544224]
[1750601119189,9.484,2205.0,2204.4,4.53623755]
[1750601119190,0.55,2204.9,2204.7,4.53567144]
[1750601119479,0.55,2204.9,2204.6,4.53580757]
[1750601119646,0.55,2204.9,2204.5,4.53599828]
[1750601119842,1.7858,2204.9,2204.2,4.53679339]
[1750601120177,1.7858,2204.9,2203.9,1.95890217]
[1750601120647,5.0855663,2204.8,2203.9,1.95890217]
[1750601120849,0.55,2204.6,2203.9,0.45080217]
[1750601121080,11.794,2204.5,2204.1,4.5368124]
[1750601121282,11.794,2204.5,2203.8,10.228329]
[1750601121484,0.55,2204.4,2203.8,0.228329]
[1750601121650,5.08741095,2203.9,2203.8,0.228329]
[1750601121852,26.87441095,2203.9,2203.8,0.228329]
[1750601122185,26.87741095,2203.9,2203.8,0.228329]
[1750601122388,0.55,2203.7,2202.2,4.54086763]
[1750601122604,0.55,2203.3,2202.3,15.01790556]
[1750601122802,8.926,2203.2,2202.5,14.59345096]
[1750601123084,0.55,2203.5,2202.6,0.37899873]
[1750601123288,8.934,2203.9,2203.1,14.53905859]
[1750601123488,12.04712699,2204.1,2203.2,0.04537603]
[1750601123648,4.2323327,2204.0,2203.0,14.59345096]
[1750601123852,2.876,2204.0,2203.9,4.53741095]
[1750601124067,11.829,2204.0,2203.9,4.53741095]
[1750601124792,2.876,2204.0,2203.9,4.53741095]
[1750601125157,2.876,2204.0,2203.7,4.53781995]
[1750601125358,0.23706863,2204.3,2204.2,4.53679339]
[1750601125567,2.876,2204.9,2204.8,4.53555878]
[1750601125789,10.895,2205.3,2204.8,4.53555878]
[1750601125790,10.895,2205.3,2204.8,4.53545513]
[1750601125973,0.23702498,2205.0,2204.9,4.53535307]
[1750601126155,10.895,2205.3,2205.2,4.53473607]
[1750601126357,11.13202777,2205.3,2205.2,4.53473607]
[1750601126565,0.23702777,2205.3,2205.2,4.53473607]
[1750601126791,1.5011,2206.0,2205.8,4.53331763]
[1750601126990,0.23697121,2206.0,2205.9,4.53329706]
[1750601128000,19.876,2206.2,2206.1,4.53288608]
[1750601128980,19.876,2206.2,2205.5,10.0]
[1750601129157,0.55,2206.1,2205.3,1.541]
[1750601129486,2.5926,2206.1,2205.7,4.5335126]
[1750601129655,2.5926,2206.1,2205.1,4.53484224]
[1750601129857,0.55,2206.1,2205.0,4.53514739]
[1750601130085,0.55,2206.1,2205.7,4.5335029]
[1750601130257,11.85,2206.0,2205.7,4.5335029]
[1750601130576,0.55,2205.9,2205.4,4.53431566]
[1750601130783,0.55,2205.9,2205.6,4.53389208]
[1750601131094,1.95583,2205.9,2205.0,4.53514739]
[1750601131293,8.968,2205.8,2205.7,4.53353399]
[1750601131503,0.55,2205.7,2205.0,4.53514739]
[1750601131787,1.6583,2205.2,2204.1,1.6498]
[1750601131987,10.892,2205.1,2204.6,4.53593735]
[1750601132287,27.27905643,2205.1,2204.5,4.53610828]
[1750601132487,23.72110652,2205.1,2204.6,4.53594446]
[1750601132695,10.892,2205.1,2205.0,4.53514739]
[1750601132859,11.863,2205.0,2204.7,4.53573886]
[1750601133193,11.863,2205.0,2204.7,4.53562501]
[1750601133488,11.863,2205.0,2204.1,0.44563376]
[1750601133704,10.55,2204.9,2203.3,4.64367247]
[1750601133916,0.55,2204.6,2204.0,4.53705088]
[1750601134214,0.55,2204.6,2203.3,9.18215465]
[1750601134215,0.55,2204.1,2203.4,4.53844059]
[1750601134359,0.55,2203.9,2202.7,14.59345096]
[1750601134560,5.08749169,2203.9,2203.3,4.53853711]
[1750601134805,0.55,2203.7,2202.8,0.46127654]
[1750601135091,8.967,2203.6,2203.2,4.53865004]
[1750601135266,1.5036,2203.8,2203.7,4.53782275]
[1750601135471,13.9136,2203.8,2203.5,4.53805023]
[1750601135786,13.9136,2203.8,2202.8,4.58505953]
[1750601135787,0.55,2203.7,2203.6,4.53791601]
[1750601135992,10.55,2203.9,2203.8,4.53761684]
[1750601136190,3.443,2203.9,2203.8,4.53761684]
[1750601136395,0.55,2203.8,2203.7,4.53782275]
[1750601136895,0.55,2203.9,2203.8,4.53761684]
[1750601137494,12.399,2203.9,2203.8,4.53761684]
[1750601137861,12.397,2203.9,2203.8,4.53761684]
[1750601138765,0.55,2203.9,2203.8,4.53761684]
[1750601138968,12.382,2203.9,2203.8,4.53761684]
[1750601139367,12.382,2203.9,2202.8,4.53967677]
[1750601139567,0.55,2203.9,2203.8,4.53761684]
[1750601139971,1.6331,2205.0,2203.9,10.0]
[1750601140176,11.827,2204.9,2204.4,4.53624802]
[1750601140381,4.53589802,2204.7,2204.0,4.53708949]
[1750601140598,5.08578944,2204.7,2204.1,4.53685465]
[1750601140817,10.0,2204.8,2203.7,10.0]
[1750601141107,10.0,2204.5,2204.0,4.53707324]
[1750601141268,0.55,2204.4,2204.1,4.53695677]
[1750601141470,0.55,2204.2,2204.1,4.53695677]
[1750601142100,11.447,2204.2,2203.9,4.53741095]
[1750601142287,9.473,2204.1,2204.0,4.53708866]
[1750601143004,0.55,2204.0,2203.9,4.537292]
[1750601143202,0.55,2204.0,2203.8,4.53756329]
[1750601143203,3.444,2204.0,2203.8,4.53747549]
[1750601143706,3.444,2204.0,2203.5,4.53808873]
[1750601144064,3.444,2204.0,2202.9,1.5764]
[1750601144270,0.55,2203.7,2203.2,4.53878973]
[1750601144606,10.4382,2203.6,2202.7,0.45197021]
[1750601144808,10.4382,2203.6,2203.2,4.53873132]
[1750601145169,4.53772215,2203.8,2203.1,0.50396035]
[1750601145170,0.55,2203.8,2203.1,0.50396035]
[1750601145375,11.791,2203.5,2203.4,4.53833656]
[1750601145776,11.791,2203.5,2203.3,4.53861028]
[1750601145976,0.55,2203.4,2203.0,0.44917031]
[1750601146303,0.55,2203.4,2203.1,4.53886307]
[1750601146501,0.55,2203.4,2203.2,4.53872218]
[1750601146809,0.55,2203.4,2203.1,4.5390464]
[1750601147008,0.55,2203.4,2203.0,4.5391693]
[1750601147220,0.55,2203.4,2202.6,16.55959023]
[1750601147406,0.55,2203.4,2203.0,4.53916303]
[1750601147608,12.23792433,2203.4,2202.3,1.5649]
[1750601147919,0.55,2203.2,2203.1,4.53905859]
[1750601148465,1.5322,2203.7,2203.6,4.53802868]
[1750601148588,2.895,2203.4,2203.3,4.53864657]
[1750601148784,11.771,2203.4,2203.3,4.53864657]
[1750601149328,11.771,2203.4,2202.4,14.59345096]
[1750601149329,0.55,2203.3,2202.4,14.59345096]
[1750601149619,0.55,2203.3,2203.2,4.53885257]
[1750601150008,0.55,2203.6,2203.5,4.53823462]
[1750601150330,11.76,2203.6,2203.5,4.53823462]
[1750601150629,11.76,2203.6,2203.4,4.53840169]
[1750601150630,0.55,2203.5,2203.1,4.53895105]
[1750601150833,0.55,2203.5,2202.3,1.5649]
[1750601150987,0.55,2203.5,2201.6,9.100329]
[1750601150988,0.55,2203.3,2201.8,4.54173857]
[1750601151185,0.55,2203.3,2201.7,14.59345096]
[1750601151186,0.55,2202.9,2201.7,14.59345096]
[1750601151389,11.78,2202.8,2202.6,4.5398832]
[1750601151624,0.55,2202.6,2202.5,4.54023514]
[1750601152192,0.55,2202.6,2202.5,4.54029511]
[1750601153488,0.55,2202.9,2202.5,4.54029511]
[1750601153688,10.9,2203.2,2203.0,4.53914001]
[1750601153885,0.55,2203.0,2202.9,4.53943875]
[1750601154110,0.55,2203.0,2202.3,1.5649]
[1750601154111,0.55,2203.0,2202.6,4.53990801]
[1750601154321,0.55,2203.0,2202.8,4.53961229]
[1750601154520,0.55,2203.0,2201.7,14.59345096]
[1750601154746,0.55,2202.9,2201.9,1.5515]
[1750601154921,0.55,2202.9,2201.3,2.99387247]
[1750601154922,5.09002891,2202.7,2201.7,4.54194486]
[1750601155123,0.55,2202.6,2201.8,4.54163555]
[1750601155420,0.55,2202.4,2201.7,4.54194486]
[1750601155623,0.55,2202.4,2201.6,0.228329]
[1750601155624,0.55,2202.2,2201.6,0.228329]
[1750601155838,0.55,2202.0,2201.6,0.228329]
[1750601156124,0.55,2201.8,2201.6,4.77036565]
[1750601156321,10.903,2202.1,2201.6,0.228329]
[1750601156322,13.9517,2201.7,2201.6,0.228329]
[1750601156524,23.9537,2201.7,2201.6,0.228329]
[1750601156697,12.1717,2201.7,2201.6,0.228329]
[1750601157325,23.9507,2201.7,2201.6,0.228329]
[1750601157527,30.88771486,2201.7,2201.6,0.228329]
[1750601157726,23.88071486,2201.7,2201.6,0.228329]
[1750601157938,4.54311138,2201.2,2200.6,4.54413884]
[1750601158264,0.55,2200.9,2200.1,1.99044249]
[1750601158574,3.447,2200.9,2200.8,4.54380225]
[1750601158774,11.1432984,2201.0,2200.9,4.5435958]
[1750601158919,11.1432984,2201.0,2200.8,4.54380225]
[1750601158920,0.55,2200.9,2200.8,4.54380225]
[1750601159115,10.906,2201.0,2200.5,0.45785256]
[1750601159361,12.36,2200.9,2200.7,4.54385204]
[1750601159671,0.55,2200.7,2200.4,4.5445197]
[1750601159965,0.55,2200.5,2200.4,4.5445197]
[1750601160171,0.55,2200.5,2200.1,1.54304215]
[1750601160656,2.1453,2200.2,2200.1,1.54304215]
[1750601160958,0.55,2200.2,2200.1,6.08829009]
[1750601161160,0.23728589,2201.3,2201.2,4.54297655]
[1750601161458,0.23728589,2201.3,2201.2,16.19067655]
[1750601161618,2.897,2202.4,2201.2,16.19067655]
[1750601161619,8.936,2202.4,2201.3,10.0]
[1750601161818,8.936,2202.4,2202.3,4.54070744]
[1750601162528,10.906,2203.1,2202.2,4.54089444]
[1750601162529,8.944,2202.5,2202.4,4.54050127]
[1750601162932,8.944,2202.5,2202.2,0.04540384]
[1750601163131,1.5953,2202.4,2202.3,4.54070744]
[1750601163334,11.829,2202.4,2202.3,4.54070744]
[1750601163518,11.829,2202.4,2201.6,10.0]
[1750601163722,11.829,2202.4,2202.3,4.54070744]
[1750601164041,11.829,2202.4,2201.8,4.54155144]
[1750601164352,1.5953,2202.2,2201.3,4.54272328]
[1750601164557,0.55,2202.1,2201.3,4.54272328]
[1750601164759,0.55,2201.9,2200.9,1.6477]
[1750601165075,0.55,2201.7,2200.9,1.6477]
[1750601165224,0.55,2201.5,2201.3,4.5426388]
[1750601165423,0.55,2201.5,2200.9,1.6477]
[1750601165424,0.55,2201.3,2200.9,4.54359164]
[1750601165664,11.861,2201.2,2201.1,4.54318295]
[1750601166137,11.861,2201.2,2200.7,4.54394317]
[1750601166138,0.55,2201.1,2200.2,1.6477]
[1750601166365,0.55,2201.1,2201.0,4.54338936]
[1750601166563,9.541,2201.1,2200.6,4.54407486]
[1750601166765,11.459,2201.1,2200.3,4.54470069]
[1750601166966,0.55,2200.9,2200.8,4.54380225]
[1750601167474,10.909,2201.1,2200.9,4.5435958]
[1750601167643,12.408,2201.0,2200.9,4.5435958]
[1750601167839,12.408,2201.0,2200.8,4.54363991]
[1750601168040,0.55,2200.8,2200.1,1.54304215]
[1750601168300,0.55,2200.8,2200.4,4.54447728]
[1750601168599,0.55,2200.8,2200.3,4.54470113]
[1750601168763,0.55,2200.8,2200.3,4.54473176]
[1750601168966,0.55,2200.8,2200.1,6.08826957]
[1750601169294,3.36787435,2200.8,2200.1,1.54304215]
[1750601169599,0.55,2200.8,2200.3,4.54470339]
[1750601169762,0.55,2200.8,2200.1,1.54304215]
[1750601170164,0.55,2200.8,2200.5,4.54441298]
[1750601170498,11.848,2200.9,2200.8,4.54380225]
[1750601170993,11.848,2200.9,2200.2,16.22485096]
[1750601171170,11.848,2200.9,2200.2,20.76986742]
[1750601171372,0.55,2200.8,2200.4,4.54442504]
[1750601171574,0.55,2200.8,2200.2,1.6314]
[1750601171575,0.55,2200.8,2200.2,6.17630889]
[1750601171898,0.55,2200.5,2200.1,1.54304215]
[1750601172098,5.09504135,2200.2,2200.1,1.54304215]
[1750601172260,19.53664135,2200.2,2200.1,0.19288026]
[1750601172875,6.66908783,2199.5,2199.4,0.228329]
[1750601173198,26.00813986,2199.5,2199.4,0.228329]
[1750601173384,13.0356,2199.5,2199.4,0.228329]
[1750601173588,10.913,2199.5,2199.4,4.77502355]
[1750601173793,2.869,2199.8,2199.7,4.54597468]
[1750601173979,8.986,2199.6,2199.5,4.54644171]
[1750601174184,9.536,2199.6,2199.5,4.54644171]
[1750601174495,12.4886,2200.3,2199.7,4.54607446]
[1750601174796,12.4886,2200.3,2199.4,0.228329]
[1750601174797,12.4886,2200.3,2199.8,0.04546035]
[1750601175003,11.847,2200.2,2200.1,4.54508887]
[1750601175686,11.847,2200.2,2199.6,4.54628114]
[1750601176000,0.55,2200.1,2199.6,4.54628114]
[1750601176175,0.55,2200.1,2199.7,4.54594085]
[1750601176497,2.0895,2200.1,2199.4,0.228329]
[1750601176797,12.419,2200.0,2199.4,0.228329]
[1750601177097,0.55,2199.9,2199.4,0.228329]
[1750601177274,1.7919,2199.9,2199.4,0.228329]
[1750601177613,8.995,2199.8,2199.4,0.228329]
[1750601177924,10.916,2200.3,2200.2,4.54504135]
[1750601178216,23.327,2200.3,2200.2,4.54504135]
[1750601178377,0.55,2200.2,2200.1,4.54516363]
[1750601178974,13.786,2200.3,2200.2,4.54504135]
[1750601179200,8.978,2200.5,2200.2,10.0]
[1750601179399,8.978,2200.5,2200.4,4.54462824]
[1750601179599,0.23729495,2201.0,2200.7,4.54400872]
[1750601179811,8.984,2200.9,2200.8,4.54376846]
[1750601180477,0.23729495,2201.0,2200.9,4.5435958]
[1750601180677,12.08829495,2201.0,2200.9,4.5435958]
[1750601181507,10.917,2201.2,2201.1,4.54318295]
[1750601181687,19.893,2201.2,2201.1,4.54318295]
[1750601181890,2.87,2201.3,2201.1,4.54318295]
[1750601182086,2.87,2201.3,2201.2,4.54297655]
[1750601182283,0.23724533,2201.4,2200.7,1.647]
[1750601182485,0.23724533,2201.4,2201.3,4.54277018]
[1750601182813,4.54133777,2202.0,2201.3,4.54277018]
[1750601182814,2.87,2202.0,2201.9,4.54153231]
[1750601183109,12.36419837,2202.0,2201.1,4.54318295]
[1750601183309,12.07719837,2202.0,2201.8,4.54173268]
[1750601183614,12.07719837,2202.0,2200.6,4.54408206]
[1750601183918,12.07719837,2202.0,2201.0,14.54324616]
[1750601184219,4.54202021,2201.7,2201.1,4.54307676]
[1750601184404,0.55,2201.5,2200.8,4.54380225]
[1750601184721,0.55,2201.1,2200.6,4.54416679]
[1750601185016,0.55,2200.9,2200.4,4.54451919]
[1750601185220,0.55,2200.7,2200.6,4.54418765]
[1750601185422,2.87,2200.8,2200.7,4.54400872]
[1750601185600,11.83,2200.8,2200.7,4.54400872]
[1750601186514,0.55,2200.7,2200.6,4.54402535]
[1750601186681,1.788,2200.7,2200.0,1.5534]
[1750601186885,1.788,2200.7,2200.3,4.54468286]
[1750601187087,1.788,2200.7,2199.7,16.14685096]
[1750601187088,0.55,2200.5,2200.2,4.54501234]
[1750601187286,0.55,2200.5,2200.3,4.5447434]
[1750601187482,1.5352,2200.6,2200.3,4.5447434]
[1750601187483,9.5,2200.4,2200.3,4.5447434]
[1750601188114,16.07812299,2201.3,2200.3,4.54483479]
[1750601188316,16.07812299,2201.3,2200.0,4.59087119]
[1750601188317,10.0,2201.1,2200.0,14.59345096]
[1750601188514,4.54370216,2200.9,2200.3,4.54469703]
[1750601188719,4.54370216,2200.9,2199.6,14.59345096]
[1750601188720,4.54481992,2200.4,2199.4,20.92180705]
[1750601188924,4.54481992,2200.4,2199.7,4.54596599]
[1750601188925,0.55,2200.2,2199.7,4.54596599]
[1750601189223,0.55,2200.2,2200.1,4.54524794]
[1750601189514,12.363,2200.2,2200.1,4.54524794]
[1750601189815,11.813,2200.2,2200.1,4.54524794]
[1750601190382,0.55,2200.1,2199.9,4.54553772]
[1750601190586,0.55,2200.1,2200.0,4.54545454]
[1750601191619,11.813,2200.2,2200.1,4.54524794]
[1750601192373,1.5352,2200.9,2200.1,1.5534]
[1750601192636,2.87,2200.6,2200.5,4.54442172]
[1750601192838,3.42,2200.6,2200.5,4.54442172]
[1750601193385,0.55,2200.5,2200.0,4.54529042]
[1750601193650,9.472,2200.4,2200.3,4.54483479]
[1750601194201,0.55,2200.3,2200.2,4.54485366]
[1750601194805,1.5352,2200.9,2200.1,4.54519843]
[1750601195007,11.765,2200.8,2200.7,4.54400872]
[1750601195232,13.09502,2200.8,2200.5,4.54428924]
[1750601195445,0.55,2200.7,2200.5,4.54428924]
[1750601195796,0.55,2200.7,2200.6,4.54421521]
[1750601196243,0.55,2200.7,2200.1,4.54519269]
[1750601196448,0.55,2200.7,2199.9,4.54566116]
[1750601196601,2.068022,2200.7,2200.3,4.54464044]
[1750601196800,12.068022,2200.7,2200.1,4.54509935]
[1750601197109,0.55,2200.2,2199.4,0.228329]
[1750601197308,0.55,2200.0,2199.4,0.228329]
[1750601197630,11.749,2199.9,2199.7,4.54603745]
[1750601197798,12.299,2199.9,2199.8,4.5458678]
[1750601197998,10.917,2200.1,2200.0,4.54545454]
[1750601198248,1.5562,2201.2,2201.1,4.54298961]
[1750601198400,10.4442,2201.2,2200.7,4.54400872]
[1750601198605,13.775,2201.3,2201.2,4.54297655]
[1750601198835,0.23728091,2201.2,2200.6,11.6509]
[1750601199080,8.895,2201.1,2200.0,14.59345096]
[1750601199279,1.6283,2201.0,2200.1,1.5787]
[1750601199561,0.55,2200.9,2200.1,4.5452253]
[1750601199742,8.898,2200.8,2200.6,4.54420398]
[1750601199953,3.407,2200.7,2200.6,4.54405145]
[1750601200145,0.55,2200.7,2200.6,4.54405145]
[1750601200371,0.55,2200.7,2200.5,4.54440869]
[1750601200372,0.55,2200.6,2199.2,16.17215096]
[1750601200670,1.8349,2200.6,2199.7,4.54590699]
[1750601200830,0.55,2200.4,2199.7,0.44465768]
[1750601201035,0.55,2200.2,2199.9,4.54553019]
[1750601201331,1.6283,2200.5,2199.9,4.54566116]
[1750601201533,8.912,2200.4,2200.3,4.54476984]
[1750601201994,2.981109,2201.2,2200.3,4.54476984]
[1750601202140,2.857,2201.0,2200.8,4.54367402]
[1750601202475,2.857,2201.0,2200.9,4.5435958]
[1750601202631,0.55,2200.9,2200.8,4.54370023]
[1750601202837,2.857,2201.0,2200.9,4.5435958]
[1750601203032,0.23728091,2201.2,2201.1,4.54318295]
[1750601203645,0.23728091,2201.2,2201.1,4.58860508]
[1750601203872,0.23728091,2201.2,2201.1,6.12188295]
[1750601204272,0.23728091,2201.2,2201.1,16.12188295]
[1750601204797,8.896,2201.7,2201.6,4.54215116]
[1750601206264,9.7856,2201.7,2201.1,11.5787]
[1750601206463,3.407,2202.0,2201.9,4.54153231]
[1750601206665,11.737,2202.0,2201.9,4.54153231]
[1750601207525,13.773,2202.1,2202.0,4.54132606]
[1750601207676,13.773,2202.1,2200.9,4.54340451]
[1750601207677,1.6283,2201.9,2201.3,0.46248135]
[1750601207878,1.6283,2201.9,2201.2,4.54285457]
[1750601207879,0.55,2201.8,2201.2,4.54285457]
[1750601208187,0.55,2201.6,2201.3,4.54266963]
[1750601208386,0.55,2201.6,2201.2,4.5429581]
[1750601208695,0.55,2201.6,2201.4,4.54256382]
[1750601208907,0.55,2201.4,2200.8,1.5787]
[1750601209219,8.87,2201.3,2201.1,4.54298113]
[1750601209414,1.2281,2201.5,2201.4,4.54256382]
[1750601209617,11.726,2201.5,2201.4,4.54256382]
[1750601209784,8.87,2201.7,2201.5,1.5586]
[1750601209986,8.87,2201.7,2201.6,4.54215116]
[1750601211727,10.917,2202.1,2202.0,4.54132606]
[1750601211927,13.773,2202.1,2202.0,4.54132606]
[1750601212230,0.55,2202.0,2200.7,8.87]
[1750601212457,0.55,2202.0,2201.8,4.54172092]
[1750601212727,0.55,2201.8,2201.1,6.10176584]
[1750601213027,9.418,2201.7,2201.6,4.54204017]
[1750601213231,15.17401317,2202.1,2201.3,4.54272814]
[1750601213232,10.917,2202.1,2202.0,4.54132606]
[1750601213396,13.773,2202.1,2202.0,4.54132606]
[1750601213728,22.641,2202.1,2202.0,4.54132606]
[1750601214527,0.23713173,2202.2,2202.1,4.54111984]
[1750601214713,0.23713173,2202.2,2202.1,16.18401984]
[1750601214902,2.856,2202.6,2202.5,4.54029511]
[1750601215811,11.723,2202.6,2202.5,4.54029511]
[1750601216125,10.913,2203.0,2202.9,4.53947069]
[1750601216325,19.78,2203.0,2202.9,4.53947069]
[1750601216540,0.23708654,2203.2,2202.8,4.53964052]
[1750601216541,0.23708654,2203.2,2203.1,4.53905859]
[1750601216693,10.911,2203.8,2203.2,4.53885257]
[1750601216892,1.0911,2203.8,2203.7,4.53782275]
[1750601217096,11.722,2203.8,2202.8,1.6429]
[1750601217324,0.23705552,2203.7,2203.0,4.53923132]
[1750601217533,0.23705552,2203.7,2203.6,4.53802868]
[1750601217720,9.10305552,2203.7,2203.6,4.53802868]
[1750601217939,11.95805552,2203.7,2203.6,4.53802868]
[1750601218230,10.911,2204.1,2203.1,16.23635096]
[1750601218430,11.721,2204.0,2203.8,4.53745155]
[1750601218638,0.23703846,2204.0,2203.9,4.53741095]
[1750601218875,0.23703846,2204.0,2203.9,6.18031095]
[1750601219037,8.864,2204.2,2204.1,4.53699236]
[1750601219356,0.23700456,2204.6,2204.5,4.536176]
[1750601219657,2.854,2204.7,2204.6,4.53597024]
[1750601219962,1.6119,2205.6,2204.5,11.63895296]
[1750601219963,0.23697485,2205.4,2204.5,11.5936]
[1750601220117,8.864,2205.3,2204.5,6.12973111]
[1750601220315,8.864,2205.3,2204.5,16.12972355]
[1750601220521,8.864,2205.3,2202.7,4.53985644]
[1750601220522,1.6119,2204.5,2202.7,4.53985644]
[1750601220715,24.62925096,2205.3,2203.0,1.5936]
[1750601220716,1.6119,2203.8,2203.0,1.5936]
[1750601220972,1.6119,2203.8,2202.3,1.5936]
[1750601220973,4.53860719,2203.4,2202.3,1.5936]
[1750601221151,4.53860719,2203.4,2203.1,0.37891271]
[1750601221152,6.70075257,2203.2,2203.1,0.37891271]
[1750601221463,25.57475257,2203.2,2203.1,0.37891271]
[1750601221622,30.13308206,2203.2,2203.1,0.37891271]
[1750601221822,20.80289469,2203.2,2203.1,0.37891271]
[1750601222057,32.53389469,2203.2,2203.1,0.37891271]
[1750601222419,18.43075257,2203.2,2203.1,0.37891271]
[1750601222624,11.734,2203.2,2203.1,4.9179713]
[1750601222929,12.284,2203.2,2203.1,0.37891271]
[1750601223137,26.82285257,2203.2,2203.1,0.37891271]
[1750601223660,26.81185257,2203.2,2203.1,0.37891271]
[1750601223874,0.55,2203.2,2203.1,0.37891271]
[1750601224171,2.827,2203.2,2203.1,4.9179713]